[Event "European Women's Chess Championship (1-48)"]
[Site "Batumi, Georgia"]
[Date "2026.05.25"]
[Round "1.20"]
[White "Ptacnikova, Lenka"]
[Black "Mammadzada, Gunay"]
[Result "0-1"]
[TimeControl "90min/ 40moves+ 30min+ 30-sec increment from move 1"]
[WhiteTitle "-"]
[BlackTitle "-"]
[WhiteFideId "305650"]
[BlackFideId "13403729"]
[WhiteElo "2126"]
[BlackElo "2374"]

1. Nf3 {[%clk 01:30:58]} {[%emt 00:00:01]} d5 {[%clk 01:30:54]} {[%emt
00:00:07]} 2. e3 {[%clk 01:31:10]} {[%emt 00:00:18]} Nf6 {[%clk 01:31:19]}
{[%emt 00:00:05]} 3. c4 {[%clk 01:31:28]} {[%emt 00:00:13]} e6 {[%clk
01:31:45]} {[%emt 00:00:05]} 4. Nc3 {[%clk 01:31:12]} {[%emt 00:00:45]} Nbd7
{[%clk 01:32:10]} {[%emt 00:00:05]} 5. b3 {[%clk 01:30:48]} {[%emt 00:00:54]}
b6 {[%clk 01:32:28]} {[%emt 00:00:12]} 6. Bb2 {[%clk 01:29:18]} {[%emt
00:02:00]} Bb7 {[%clk 01:32:33]} {[%emt 00:00:25]} 7. d4 {[%clk 01:29:13]}
{[%emt 00:00:35]} Bd6 {[%clk 01:31:41]} {[%emt 00:01:22]} 8. g3 {[%clk
01:15:22]} {[%emt 00:14:21]} c5 {[%clk 01:10:34]} {[%emt 00:21:37]} 9. dxc5
{[%clk 00:59:46]} {[%emt 00:16:06]} Bxc5 {[%clk 01:04:04]} {[%emt 00:07:00]} 10.
cxd5 {[%clk 00:54:47]} {[%emt 00:05:28]} Nxd5 {[%clk 01:02:19]} {[%emt
00:02:16]} 11. Nxd5 {[%clk 00:53:30]} {[%emt 00:01:47]} Bxd5 {[%clk 01:02:44]}
{[%emt 00:00:05]} 12. a3 {[%clk 00:46:51]} {[%emt 00:07:10]} O-O {[%clk
01:00:39]} {[%emt 00:02:34]} 13. Bg2 {[%clk 00:46:01]} {[%emt 00:01:20]} Be7
{[%clk 00:50:58]} {[%emt 00:10:11]} 14. O-O {[%clk 00:45:59]} {[%emt 00:00:32]}
Bf6 {[%clk 00:48:41]} {[%emt 00:02:47]} 15. Bxf6 {[%clk 00:45:48]} {[%emt
00:00:41]} Qxf6 {[%clk 00:48:37]} {[%emt 00:00:34]} 16. Qd4 {[%clk 00:37:07]}
{[%emt 00:09:11]} Qe7 {[%clk 00:44:43]} {[%emt 00:04:23]} 17. b4 {[%clk
00:34:56]} {[%emt 00:02:42]} Nf6 {[%clk 00:44:38]} {[%emt 00:00:35]} 18. Rac1
{[%clk 00:34:36]} {[%emt 00:00:49]} Qb7 {[%clk 00:44:17]} {[%emt 00:00:52]} 19.
Nh4 {[%clk 00:33:27]} {[%emt 00:01:38]} Bxg2 {[%clk 00:37:18]} {[%emt
00:07:30]} 20. Nxg2 {[%clk 00:33:55]} {[%emt 00:00:02]} Rad8 {[%clk 00:37:40]}
{[%emt 00:00:09]} 21. Qb2 {[%clk 00:27:48]} {[%emt 00:06:36]} Ne4 {[%clk
00:35:39]} {[%emt 00:02:30]} 22. Rfd1 {[%clk 00:18:58]} {[%emt 00:09:21]} Ng5
{[%clk 00:35:31]} {[%emt 00:00:37]} 23. Qe2 {[%clk 00:17:12]} {[%emt 00:02:16]}
Nf3+ {[%clk 00:32:34]} {[%emt 00:03:28]} 24. Kh1 {[%clk 00:17:41]} {[%emt
00:00:01]} Qe4 {[%clk 00:30:55]} {[%emt 00:02:08]} 25. Rc7 {[%clk 00:17:25]}
{[%emt 00:00:47]} h6 {[%clk 00:27:30]} {[%emt 00:03:54]} 26. Rxa7 {[%clk
00:13:41]} {[%emt 00:04:15]} Rxd1+ {[%clk 00:24:06]} {[%emt 00:03:55]} 27. Qxd1
{[%clk 00:14:09]} Rc8 {[%clk 00:24:10]} {[%emt 00:00:25]} 28. Nf4 {[%clk
00:07:32]} {[%emt 00:07:07]} Nd2+ {[%clk 00:17:32]} {[%emt 00:07:08]} 29. Kg1
{[%clk 00:07:41]} {[%emt 00:00:22]} Rd8 {[%clk 00:17:51]} {[%emt 00:00:11]} 30.
Qh5 {[%clk 00:06:52]} {[%emt 00:01:19]} Qb1+ {[%clk 00:18:06]} {[%emt
00:00:15]} 0-1

[Event "European Women's Chess Championship (1-48)"]
[Site "Batumi, Georgia"]
[Date "2026.05.25"]
[Round "1.21"]
[White "Sivanandan, Bodhana"]
[Black "Vidic, Teja"]
[Result "1-0"]
[TimeControl "90min/ 40moves+ 30min+ 30-sec increment from move 1"]
[WhiteTitle "-"]
[BlackTitle "-"]
[WhiteFideId "497592"]
[BlackFideId "14605511"]
[WhiteElo "2374"]
[BlackElo "2123"]

1. e4 {[%clk 01:30:58]} {[%emt 00:00:01]} c5 {[%clk 01:30:46]} {[%emt
00:00:14]} 2. Nf3 {[%clk 01:31:11]} {[%emt 00:00:17]} e6 {[%clk 01:31:03]}
{[%emt 00:00:14]} 3. g3 {[%clk 01:31:07]} {[%emt 00:00:34]} d5 {[%clk
01:31:09]} {[%emt 00:00:23]} 4. exd5 {[%clk 01:31:12]} {[%emt 00:00:25]} exd5
{[%clk 01:31:32]} {[%emt 00:00:08]} 5. d4 {[%clk 01:31:05]} {[%emt 00:00:36]}
Nc6 {[%clk 01:31:39]} {[%emt 00:00:24]} 6. Bg2 {[%clk 01:28:55]} {[%emt
00:02:39]} cxd4 {[%clk 01:31:58]} {[%emt 00:00:11]} 7. Nxd4 {[%clk 01:27:58]}
{[%emt 00:01:26]} Bc5 {[%clk 01:32:16]} {[%emt 00:00:13]} 8. Qe2+ {[%clk
01:24:05]} {[%emt 00:04:23]} Qe7 {[%clk 01:31:40]} {[%emt 00:01:06]} 9. Qxe7+
{[%clk 01:22:14]} {[%emt 00:02:20]} Ngxe7 {[%clk 01:30:51]} {[%emt 00:01:19]}
10. Nb3 {[%clk 01:21:07]} {[%emt 00:01:38]} Bb6 {[%clk 01:30:42]} {[%emt
00:00:38]} 11. O-O {[%clk 01:19:04]} {[%emt 00:02:34]} Bf5 {[%clk 01:22:56]}
{[%emt 00:08:16]} 12. c3 {[%clk 01:18:22]} {[%emt 00:01:11]} O-O-O {[%clk
01:23:00]} {[%emt 00:00:27]} 13. Re1 {[%clk 01:16:16]} {[%emt 00:02:35]} Ng6
{[%clk 01:18:29]} {[%emt 00:05:01]} 14. Be3 {[%clk 01:11:39]} {[%emt 00:05:08]}
Rhe8 {[%clk 01:17:34]} {[%emt 00:01:24]} 15. N1d2 {[%clk 01:10:02]} {[%emt
00:02:07]} Bxe3 {[%clk 01:16:09]} {[%emt 00:01:56]} 16. Rxe3 {[%clk 01:09:07]}
{[%emt 00:01:25]} Rxe3 {[%clk 01:16:28]} {[%emt 00:00:11]} 17. fxe3 {[%clk
01:09:24]} {[%emt 00:00:12]} Nge5 {[%clk 01:13:33]} {[%emt 00:03:25]} 18. Nd4
{[%clk 01:06:22]} {[%emt 00:03:33]} Bg6 {[%clk 01:08:55]} {[%emt 00:05:08]} 19.
b3 {[%clk 01:02:51]} {[%emt 00:04:01]} Ng4 {[%clk 01:04:47]} {[%emt 00:04:36]}
20. Re1 {[%clk 01:00:14]} {[%emt 00:03:08]} Nce5 {[%clk 01:03:10]} {[%emt
00:02:07]} 21. Nf1 {[%clk 00:55:57]} {[%emt 00:04:47]} Nd3 {[%clk 00:56:51]}
{[%emt 00:06:49]} 22. Rd1 {[%clk 00:48:41]} {[%emt 00:07:47]} Ndf2 {[%clk
00:53:32]} {[%emt 00:03:48]} 23. Rc1 {[%clk 00:43:23]} {[%emt 00:05:48]} Nd3
{[%clk 00:52:25]} {[%emt 00:01:38]} 24. Ra1 {[%clk 00:40:49]} {[%emt 00:03:04]}
Kb8 {[%clk 00:47:14]} {[%emt 00:05:41]} 25. h3 {[%clk 00:38:59]} {[%emt
00:02:21]} Nf6 {[%clk 00:46:49]} {[%emt 00:00:54]} 26. Rd1 {[%clk 00:35:02]}
{[%emt 00:04:26]} Rc8 {[%clk 00:36:32]} {[%emt 00:10:47]} 27. Ne2 {[%clk
00:33:06]} {[%emt 00:02:26]} h5 {[%clk 00:36:28]} {[%emt 00:00:35]} 28. Nd2
{[%clk 00:26:25]} {[%emt 00:07:11]} Re8 {[%clk 00:33:07]} {[%emt 00:03:51]} 29.
Nf4 {[%clk 00:24:55]} {[%emt 00:02:00]} Nxf4 {[%clk 00:31:16]} {[%emt
00:02:21]} 30. exf4 {[%clk 00:25:15]} {[%emt 00:00:10]} Re3 {[%clk 00:31:36]}
{[%emt 00:00:09]} 31. Nf1 {[%clk 00:24:53]} {[%emt 00:00:53]} Rxc3 {[%clk
00:31:24]} {[%emt 00:00:42]} 32. Bxd5 {[%clk 00:24:10]} {[%emt 00:01:12]} Nxd5
{[%clk 00:28:05]} {[%emt 00:03:49]} 33. Rxd5 {[%clk 00:24:29]} {[%emt
00:00:11]} Bd3 {[%clk 00:28:26]} {[%emt 00:00:10]} 34. Nd2 {[%clk 00:23:37]}
{[%emt 00:01:22]} Kc7 {[%clk 00:24:43]} {[%emt 00:04:11]} 35. Kf2 {[%clk
00:20:41]} {[%emt 00:03:28]} g6 {[%clk 00:20:51]} {[%emt 00:04:22]} 36. Re5
{[%clk 00:19:34]} {[%emt 00:01:37]} Kd7 {[%clk 00:17:59]} {[%emt 00:03:21]} 37.
Re3 {[%clk 00:18:51]} {[%emt 00:01:14]} b5 {[%clk 00:15:27]} {[%emt 00:03:02]}
38. b4 {[%clk 00:13:08]} {[%emt 00:06:13]} a5 {[%clk 00:09:24]} {[%emt
00:06:33]} 39. bxa5 {[%clk 00:10:27]} {[%emt 00:03:11]} b4 {[%clk 00:09:49]}
{[%emt 00:00:05]} 40. Nf3 {[%clk 00:03:43]} {[%emt 00:07:14]} Rc2+ {[%clk
00:05:59]} {[%emt 00:04:19]} 41. Ke1 {[%clk 00:02:58]} {[%emt 00:01:15]} Bf5
{[%clk 00:01:59]} {[%emt 00:04:31]} 42. a3 {[%clk 00:02:16]} {[%emt 00:01:12]}
bxa3 {[%clk 00:24:03]} {[%emt 00:08:25]} 43. Rxa3 {[%clk 00:32:14]} {[%emt
00:00:32]} Kc7 {[%clk 00:24:25]} {[%emt 00:00:09]} 44. Nd4 {[%clk 00:31:32]}
{[%emt 00:01:12]} Rc5 {[%clk 00:22:27]} {[%emt 00:02:28]} 45. Nxf5 {[%clk
00:29:23]} {[%emt 00:02:39]} Rxf5 {[%clk 00:22:51]} {[%emt 00:00:06]} 46. a6
{[%clk 00:27:53]} {[%emt 00:02:00]} Kb8 {[%clk 00:22:51]} {[%emt 00:00:30]} 47.
a7+ {[%clk 00:23:17]} {[%emt 00:05:06]} Ka8 {[%clk 00:23:16]} {[%emt 00:00:05]}
48. Ke2 {[%clk 00:21:10]} {[%emt 00:02:36]} h4 {[%clk 00:19:53]} {[%emt
00:03:54]} 49. Kf3 {[%clk 00:20:52]} {[%emt 00:00:48]} hxg3 {[%clk 00:20:17]}
{[%emt 00:00:06]} 50. Kxg3 {[%clk 00:21:13]} {[%emt 00:00:08]} Rh5 {[%clk
00:18:19]} {[%emt 00:02:28]} 51. Kg4 {[%clk 00:19:20]} {[%emt 00:02:24]} Rf5
{[%clk 00:17:52]} {[%emt 00:00:57]} 52. Re3 {[%clk 00:06:51]} {[%emt 00:12:59]}
f6 {[%clk 00:04:22]} {[%emt 00:14:00]} 53. Ra3 {[%clk 00:05:26]} {[%emt
00:01:54]} Rh5 {[%clk 00:03:29]} {[%emt 00:01:23]} 54. Ra6 {[%clk 00:04:53]}
{[%emt 00:01:04]} f5+ {[%clk 00:03:18]} {[%emt 00:00:41]} 55. Kg3 {[%clk
00:05:14]} {[%emt 00:00:09]} g5 {[%clk 00:03:23]} {[%emt 00:00:25]} 56. Ra3
{[%clk 00:03:49]} {[%emt 00:01:55]} gxf4+ {[%clk 00:01:33]} {[%emt 00:02:20]}
57. Kxf4 {[%clk 00:04:09]} {[%emt 00:00:10]} Rh4+ {[%clk 00:01:38]} {[%emt
00:00:25]} 58. Kxf5 {[%clk 00:04:30]} {[%emt 00:00:09]} Rb4 {[%clk 00:02:03]}
{[%emt 00:00:05]} 59. Kg5 {[%clk 00:04:34]} {[%emt 00:00:25]} Rb5+ {[%clk
00:02:24]} {[%emt 00:00:09]} 60. Kg4 {[%clk 00:04:57]} {[%emt 00:00:07]} Rb4+
{[%clk 00:02:50]} {[%emt 00:00:04]} 61. Kg3 {[%clk 00:05:04]} {[%emt 00:00:23]}
Rb7 {[%clk 00:01:55]} {[%emt 00:01:26]} 62. h4 {[%clk 00:05:27]} {[%emt
00:00:07]} Rg7+ {[%clk 00:02:22]} {[%emt 00:00:03]} 63. Kh3 {[%clk 00:05:48]}
{[%emt 00:00:09]} Rb7 {[%clk 00:01:25]} {[%emt 00:01:27]} 64. h5 {[%clk
00:06:03]} {[%emt 00:00:14]} Rb5 {[%clk 00:01:46]} {[%emt 00:00:09]} 65. Kg4
{[%clk 00:06:09]} {[%emt 00:00:24]} Rb4+ {[%clk 00:02:13]} {[%emt 00:00:04]} 66.
Kg5 {[%clk 00:06:30]} {[%emt 00:00:09]} Rb5+ {[%clk 00:02:39]} {[%emt
00:00:04]} 67. Kg6 {[%clk 00:06:49]} {[%emt 00:00:10]} Rb6+ {[%clk 00:03:05]}
{[%emt 00:00:04]} 68. Kg7 {[%clk 00:07:02]} {[%emt 00:00:17]} Rb7+ {[%clk
00:03:32]} {[%emt 00:00:03]} 69. Kg8 {[%clk 00:07:23]} {[%emt 00:00:09]} Rb6
{[%clk 00:03:59]} {[%emt 00:00:04]} 70. Ra5 {[%clk 00:07:40]} {[%emt 00:00:13]}
Rc6 {[%clk 00:04:03]} {[%emt 00:00:26]} 71. Kg7 {[%clk 00:08:03]} {[%emt
00:00:07]} Rc7+ {[%clk 00:04:29]} {[%emt 00:00:04]} 72. Kg6 {[%clk 00:08:23]}
{[%emt 00:00:09]} Rc6+ {[%clk 00:04:53]} {[%emt 00:00:06]} 73. Kg5 {[%clk
00:08:47]} {[%emt 00:00:06]} Rc1 {[%clk 00:03:36]} {[%emt 00:01:47]} 74. h6
{[%clk 00:09:09]} {[%emt 00:00:08]} Rg1+ {[%clk 00:04:00]} {[%emt 00:00:05]} 75.
Kf6 {[%clk 00:09:33]} {[%emt 00:00:07]} Rh1 {[%clk 00:04:26]} {[%emt 00:00:04]}
76. Kg6 {[%clk 00:09:56]} {[%emt 00:00:07]} Rg1+ {[%clk 00:04:19]} {[%emt
00:00:38]} 77. Rg5 {[%clk 00:10:14]} {[%emt 00:00:11]} Rc1 {[%clk 00:04:46]}
{[%emt 00:00:03]} 78. h7 {[%clk 00:10:30]} {[%emt 00:00:15]} 1-0

[Event "European Women's Chess Championship (1-48)"]
[Site "Batumi, Georgia"]
[Date "2026.05.25"]
[Round "1.22"]
[White "Ismayil, Malak"]
[Black "Atalik, Ekaterina"]
[Result "1/2-1/2"]
[TimeControl "90min/ 40moves+ 30min+ 30-sec increment from move 1"]
[WhiteTitle "-"]
[BlackTitle "-"]
[WhiteFideId "13412604"]
[BlackFideId "4130189"]
[WhiteElo "2122"]
[BlackElo "2372"]

1. Nf3 {[%clk 01:30:54]} {[%emt 00:00:06]} d5 {[%clk 01:30:41]} {[%emt
00:00:20]} 2. b3 {[%clk 01:31:19]} {[%emt 00:00:05]} c5 {[%clk 01:30:35]}
{[%emt 00:00:35]} 3. Bb2 {[%clk 01:31:44]} {[%emt 00:00:05]} Nc6 {[%clk
01:29:18]} {[%emt 00:01:46]} 4. e3 {[%clk 01:31:19]} {[%emt 00:00:56]} a6
{[%clk 01:29:23]} {[%emt 00:00:26]} 5. d4 {[%clk 01:28:51]} {[%emt 00:02:58]}
Nf6 {[%clk 01:28:28]} {[%emt 00:01:24]} 6. Nbd2 {[%clk 01:27:38]} {[%emt
00:01:43]} cxd4 {[%clk 01:25:40]} {[%emt 00:03:19]} 7. exd4 {[%clk 01:19:42]}
{[%emt 00:08:25]} g6 {[%clk 01:20:41]} {[%emt 00:05:28]} 8. Be2 {[%clk
01:17:34]} {[%emt 00:02:39]} Bg7 {[%clk 01:20:48]} {[%emt 00:00:23]} 9. O-O
{[%clk 01:17:15]} {[%emt 00:00:49]} O-O {[%clk 01:18:59]} {[%emt 00:02:19]} 10.
Ne5 {[%clk 01:14:24]} {[%emt 00:03:21]} Qb6 {[%clk 01:14:25]} {[%emt 00:05:04]}
11. Ndf3 {[%clk 01:05:53]} {[%emt 00:09:02]} Bf5 {[%clk 01:07:49]} {[%emt
00:07:05]} 12. c4 {[%clk 00:52:35]} {[%emt 00:13:47]} Rad8 {[%clk 00:44:58]}
{[%emt 00:23:21]} 13. c5 {[%clk 00:48:50]} {[%emt 00:04:16]} Qa7 {[%clk
00:44:50]} {[%emt 00:00:38]} 14. Nxc6 {[%clk 00:45:51]} {[%emt 00:03:29]} bxc6
{[%clk 00:45:16]} {[%emt 00:00:04]} 15. Ne5 {[%clk 00:45:29]} {[%emt 00:00:52]}
Qb7 {[%clk 00:45:21]} {[%emt 00:00:25]} 16. Qe1 {[%clk 00:22:40]} {[%emt
00:23:19]} Nd7 {[%clk 00:39:34]} {[%emt 00:06:17]} 17. Nxd7 {[%clk 00:21:49]}
{[%emt 00:01:20]} Bxd7 {[%clk 00:38:31]} {[%emt 00:01:34]} 18. Qa5 {[%clk
00:21:10]} {[%emt 00:01:08]} Bc8 {[%clk 00:38:52]} {[%emt 00:00:09]} 19. Bd3
{[%clk 00:20:35]} {[%emt 00:01:06]} Rde8 {[%clk 00:33:22]} {[%emt 00:06:00]} 20.
Rae1 {[%clk 00:19:14]} {[%emt 00:01:51]} Bf5 {[%clk 00:25:44]} {[%emt
00:08:07]} 21. Qxa6 {[%clk 00:06:36]} {[%emt 00:13:09]} Qxa6 {[%clk 00:25:43]}
{[%emt 00:00:31]} 22. Bxa6 {[%clk 00:07:02]} {[%emt 00:00:04]} Ra8 {[%clk
00:25:25]} {[%emt 00:00:47]} 23. Bb7 {[%clk 00:07:25]} {[%emt 00:00:07]} Rxa2
{[%clk 00:25:05]} {[%emt 00:00:50]} 24. Bc3 {[%clk 00:07:27]} {[%emt 00:00:29]}
Bd3 {[%clk 00:12:52]} {[%emt 00:12:43]} 25. Ra1 {[%clk 00:05:44]} {[%emt
00:02:13]} Rc2 {[%clk 00:13:04]} {[%emt 00:00:17]} 26. Rfc1 {[%clk 00:06:08]}
{[%emt 00:00:06]} Rxc1+ {[%clk 00:12:31]} {[%emt 00:01:03]} 27. Rxc1 {[%clk
00:06:38]} Bb5 {[%clk 00:12:32]} {[%emt 00:00:29]} 28. Ra1 {[%clk 00:06:10]}
{[%emt 00:00:57]} Rb8 {[%clk 00:12:17]} {[%emt 00:00:45]} 29. Ra7 {[%clk
00:05:24]} {[%emt 00:01:16]} f6 {[%clk 00:08:02]} {[%emt 00:04:45]} 30. f4
{[%clk 00:05:08]} {[%emt 00:00:47]} Kf7 {[%clk 00:05:47]} {[%emt 00:02:45]} 31.
b4 {[%clk 00:05:19]} {[%emt 00:00:19]} Ke6 {[%clk 00:05:00]} {[%emt 00:01:16]}
32. Ba6 {[%clk 00:04:21]} {[%emt 00:01:29]} g5 {[%clk 00:03:04]} {[%emt
00:02:25]} 33. Bxb5 {[%clk 00:04:32]} {[%emt 00:00:20]} cxb5 {[%clk 00:03:20]}
{[%emt 00:00:14]} 34. fxg5 {[%clk 00:00:44]} {[%emt 00:04:17]} fxg5 {[%clk
00:03:45]} {[%emt 00:00:05]} 35. Kf2 {[%clk 00:00:58]} {[%emt 00:00:17]} Bf6
{[%clk 00:03:01]} {[%emt 00:01:13]} 36. Ke3 {[%clk 00:01:06]} {[%emt 00:00:22]}
h5 {[%clk 00:02:44]} {[%emt 00:00:47]} 37. Ra6+ {[%clk 00:01:00]} {[%emt
00:00:37]} Kd7 {[%clk 00:02:49]} {[%emt 00:00:24]} 38. Be1 {[%clk 00:00:53]}
{[%emt 00:00:37]} h4 {[%clk 00:02:49]} {[%emt 00:00:30]} 39. Kd3 {[%clk
00:00:55]} {[%emt 00:00:28]} Kc7 {[%clk 00:02:12]} {[%emt 00:01:08]} 40. Bd2
{[%clk 00:01:03]} {[%emt 00:00:22]} Kb7 {[%clk 00:02:09]} {[%emt 00:00:33]} 41.
Ra5 {[%clk 00:01:12]} {[%emt 00:00:21]} Kc6 {[%clk 00:02:26]} {[%emt 00:00:12]}
42. h3 {[%clk 00:01:22]} {[%emt 00:00:20]} Rg8 {[%clk 00:01:51]} {[%emt
00:01:05]} 43. Ra6+ {[%clk 00:01:44]} {[%emt 00:00:09]} Kd7 {[%clk 00:01:04]}
{[%emt 00:01:16]} 44. Be3 {[%clk 00:01:35]} {[%emt 00:00:40]} Kc7 {[%clk
00:27:49]} {[%emt 00:03:45]} 45. Ke2 {[%clk 00:24:44]} {[%emt 00:07:21]} g4
{[%clk 00:27:02]} {[%emt 00:01:16]} 46. Bf4+ {[%clk 00:24:51]} {[%emt
00:00:24]} Kd7 {[%clk 00:26:24]} {[%emt 00:01:07]} 47. c6+ {[%clk 00:16:58]}
{[%emt 00:08:24]} Ke6 {[%clk 00:26:48]} {[%emt 00:00:04]} 48. c7+ {[%clk
00:17:01]} {[%emt 00:00:28]} Kd7 {[%clk 00:25:40]} {[%emt 00:01:39]} 49. Kd3
{[%clk 00:08:18]} {[%emt 00:09:12]} gxh3 {[%clk 00:25:01]} {[%emt 00:01:09]} 50.
gxh3 {[%clk 00:08:43]} {[%emt 00:00:06]} Rf8 {[%clk 00:23:57]} {[%emt
00:01:33]} 51. Rb6 {[%clk 00:08:08]} {[%emt 00:01:05]} Bxd4 {[%clk 00:19:14]}
{[%emt 00:05:13]} 52. c8=Q+ {[%emt 00:03:17]} Rxc8 {[%clk 00:19:39]} {[%emt
00:00:04]} 53. Kxd4 {[%clk 00:05:49]} {[%emt 00:00:03]} Rc4+ {[%clk 00:19:50]}
{[%emt 00:00:20]} 54. Ke3 {[%clk 00:04:22]} {[%emt 00:01:57]} Rxb4 {[%clk
00:19:24]} {[%emt 00:00:55]} 55. Rb7+ {[%clk 00:03:43]} {[%emt 00:01:10]} Ke6
{[%clk 00:19:27]} {[%emt 00:00:26]} 56. Bg5 {[%clk 00:03:33]} {[%emt 00:00:40]}
Kf5 {[%clk 00:19:05]} {[%emt 00:00:52]} 57. Bxe7 {[%clk 00:03:47]} {[%emt
00:00:16]} Rb3+ {[%clk 00:19:22]} {[%emt 00:00:13]} 58. Kd4 {[%clk 00:04:08]}
{[%emt 00:00:10]} Rxh3 {[%clk 00:19:24]} {[%emt 00:00:27]} 59. Rxb5 {[%clk
00:04:18]} {[%emt 00:00:20]} Rh1 {[%clk 00:19:23]} {[%emt 00:00:31]} 60. Rxd5+
{[%clk 00:04:07]} {[%emt 00:00:41]} Kg4 {[%clk 00:19:47]} {[%emt 00:00:06]} 61.
Bxh4 {[%clk 00:01:40]} {[%emt 00:02:57]} Rxh4 {[%clk 00:20:02]} {[%emt
00:00:15]} 1/2-1/2

[Event "European Women's Chess Championship (1-48)"]
[Site "Batumi, Georgia"]
[Date "2026.05.25"]
[Round "1.23"]
[White "Klek, Hanna Marie"]
[Black "Ivekovic, Tihana"]
[Result "1-0"]
[TimeControl "90min/ 40moves+ 30min+ 30-sec increment from move 1"]
[WhiteTitle "-"]
[BlackTitle "-"]
[WhiteFideId "24670057"]
[BlackFideId "14517825"]
[WhiteElo "2369"]
[BlackElo "2119"]

1. e4 {[%clk 01:30:57]} {[%emt 00:00:03]} e5 {[%clk 01:30:56]} {[%emt
00:00:05]} 2. Nf3 {[%clk 01:31:19]} {[%emt 00:00:07]} Nc6 {[%clk 01:31:21]}
{[%emt 00:00:06]} 3. Bc4 {[%clk 01:31:43]} {[%emt 00:00:06]} Bc5 {[%clk
01:31:47]} {[%emt 00:00:04]} 4. c3 {[%clk 01:31:56]} {[%emt 00:00:17]} Nf6
{[%clk 01:32:10]} {[%emt 00:00:07]} 5. d3 {[%clk 01:32:19]} {[%emt 00:00:07]}
a5 {[%clk 01:32:34]} {[%emt 00:00:07]} 6. O-O {[%clk 01:32:20]} {[%emt
00:00:28]} d6 {[%clk 01:32:50]} {[%emt 00:00:14]} 7. Re1 {[%clk 01:32:28]}
{[%emt 00:00:21]} O-O {[%clk 01:32:54]} {[%emt 00:00:27]} 8. h3 {[%clk
01:32:46]} {[%emt 00:00:12]} Be6 {[%clk 01:33:15]} {[%emt 00:00:09]} 9. Bb5
{[%clk 01:33:04]} {[%emt 00:00:11]} Ba7 {[%clk 01:33:25]} {[%emt 00:00:22]} 10.
d4 {[%clk 01:31:48]} {[%emt 00:01:45]} Bd7 {[%clk 01:33:14]} {[%emt 00:00:40]}
11. Bf1 {[%clk 01:17:48]} {[%emt 00:14:30]} Re8 {[%clk 01:28:43]} {[%emt
00:05:01]} 12. d5 {[%clk 01:16:27]} {[%emt 00:01:51]} Ne7 {[%clk 01:25:51]}
{[%emt 00:03:22]} 13. c4 {[%clk 01:11:01]} {[%emt 00:05:56]} Ng6 {[%clk
01:20:33]} {[%emt 00:05:49]} 14. Nh2 {[%clk 01:02:29]} {[%emt 00:09:01]} h6
{[%clk 01:17:38]} {[%emt 00:03:25]} 15. Nc3 {[%clk 00:59:50]} {[%emt 00:03:09]}
a4 {[%clk 01:12:17]} {[%emt 00:05:52]} 16. Rb1 {[%clk 00:52:54]} {[%emt
00:07:25]} Bc5 {[%clk 00:57:45]} {[%emt 00:15:02]} 17. Be3 {[%clk 00:45:27]}
{[%emt 00:07:56]} Bxe3 {[%clk 00:54:22]} {[%emt 00:03:53]} 18. Rxe3 {[%clk
00:45:51]} {[%emt 00:00:07]} Nf4 {[%clk 00:53:21]} {[%emt 00:01:32]} 19. h4
{[%clk 00:39:08]} {[%emt 00:07:12]} Qe7 {[%clk 00:35:33]} {[%emt 00:18:18]} 20.
g3 {[%clk 00:35:26]} {[%emt 00:04:12]} Ng6 {[%clk 00:35:48]} {[%emt 00:00:15]}
21. Bd3 {[%clk 00:31:26]} {[%emt 00:04:30]} Reb8 {[%clk 00:34:55]} {[%emt
00:01:23]} 22. h5 {[%clk 00:27:58]} {[%emt 00:03:57]} Nf8 {[%clk 00:35:15]}
{[%emt 00:00:11]} 23. f4 {[%clk 00:27:40]} {[%emt 00:00:48]} c6 {[%clk
00:28:45]} {[%emt 00:07:01]} 24. Qe2 {[%clk 00:26:23]} {[%emt 00:01:45]} Qd8
{[%clk 00:25:13]} {[%emt 00:04:03]} 25. Kg2 {[%clk 00:21:27]} {[%emt 00:05:25]}
Qc8 {[%clk 00:23:33]} {[%emt 00:02:11]} 26. Kh1 {[%clk 00:20:13]} {[%emt
00:01:44]} Bg4 {[%clk 00:13:25]} {[%emt 00:10:38]} 27. Nxg4 {[%clk 00:19:38]}
{[%emt 00:01:05]} Nxg4 {[%clk 00:13:50]} {[%emt 00:00:05]} 28. Rf3 {[%clk
00:19:32]} {[%emt 00:00:35]} Nd7 {[%clk 00:12:27]} {[%emt 00:01:54]} 29. Kg2
{[%clk 00:17:40]} {[%emt 00:02:21]} Ndf6 {[%clk 00:11:53]} {[%emt 00:01:05]} 30.
Rh1 {[%clk 00:16:54]} {[%emt 00:01:16]} Qc7 {[%clk 00:11:12]} {[%emt 00:01:11]}
31. Rh4 {[%clk 00:13:58]} {[%emt 00:03:25]} g5 {[%clk 00:07:22]} {[%emt
00:04:21]} 32. fxg5 {[%clk 00:07:55]} {[%emt 00:06:33]} hxg5 {[%clk 00:07:43]}
{[%emt 00:00:09]} 33. Rh1 {[%clk 00:07:33]} {[%emt 00:00:52]} Nh7 {[%clk
00:03:55]} {[%emt 00:04:18]} 34. h6 {[%clk 00:05:47]} {[%emt 00:02:15]} Ngf6
{[%clk 00:01:54]} {[%emt 00:02:32]} 35. Rf5 {[%clk 00:05:39]} {[%emt 00:00:38]}
Rf8 {[%clk 00:01:02]} {[%emt 00:01:23]} 36. Qe3 {[%clk 00:04:22]} {[%emt
00:01:46]} Ne8 {[%clk 00:01:12]} {[%emt 00:00:20]} 37. dxc6 {[%clk 00:03:51]}
{[%emt 00:01:01]} bxc6 {[%clk 00:01:36]} {[%emt 00:00:06]} 38. c5 {[%clk
00:04:07]} {[%emt 00:00:14]} f6 {[%clk 00:01:57]} {[%emt 00:00:09]} 39. Bc4+
{[%clk 00:04:09]} {[%emt 00:00:28]} Kh8 {[%clk 00:02:22]} {[%emt 00:00:05]} 40.
Rf2 {[%clk 00:03:42]} {[%emt 00:00:57]} Qa7 {[%clk 00:02:33]} {[%emt 00:00:19]}
41. Rd1 {[%clk 00:30:00]} {[%emt 00:03:41]} dxc5 {[%clk 00:30:31]} {[%emt
00:02:32]} 42. Rfd2 {[%clk 00:27:19]} {[%emt 00:03:41]} Rb8 {[%clk 00:30:46]}
{[%emt 00:00:16]} 43. Qf2 {[%clk 00:22:53]} {[%emt 00:04:56]} Rb7 {[%clk
00:29:42]} {[%emt 00:01:34]} 44. Qf5 {[%clk 00:22:52]} {[%emt 00:00:30]} 1-0